bitfinex/quotes_BTCUSD_20251007
["timestamp","ask_amount","ask_price","bid_price","bid_amount"]
[1759834969147,0.16096579,124250.0,124240.0,4.962e-05]
[1759834969358,0.74365405,124250.0,124240.0,0.31072962]
[1759834969562,0.93752405,124250.0,124240.0,0.31072962]
[1759834969771,0.96168251,124250.0,124240.0,0.3111276]
[1759834970422,0.99489969,124250.0,124240.0,0.3151276]
[1759834970631,0.99589969,124250.0,124240.0,0.3171276]
[1759834973302,0.96368251,124250.0,124240.0,0.3171276]
[1759834974131,0.96368251,124250.0,124240.0,0.0900476]
[1759834974291,0.96368251,124250.0,124240.0,0.3171276]
[1759834979190,0.96368251,124250.0,124240.0,0.0900476]
[1759834979379,0.96368251,124250.0,124240.0,0.3171276]
[1759834979580,1.04367931,124250.0,124240.0,0.3171276]
[1759834981442,0.54411311,124250.0,124240.0,0.3171276]
[1759834981642,1.04367931,124250.0,124240.0,0.3171276]
[1759834982729,0.54411311,124250.0,124240.0,0.3171276]
[1759834982944,0.96368251,124250.0,124240.0,0.3171276]
[1759834983149,0.96407781,124250.0,124240.0,0.3171276]
[1759834985194,0.46411631,124250.0,124240.0,0.3171276]
[1759834985397,0.96407781,124250.0,124240.0,0.3171276]
[1759834985918,0.46411631,124250.0,124240.0,0.3171276]
[1759834986279,0.96407781,124250.0,124240.0,0.3171276]
[1759834986984,0.46411631,124250.0,124240.0,0.3171276]
[1759834987197,0.96407781,124250.0,124240.0,0.3171276]
[1759834988336,0.98110994,124250.0,124240.0,0.3171276]
[1759834988549,0.96407781,124250.0,124240.0,0.3171276]
[1759834988978,0.46411631,124250.0,124240.0,0.3171276]
[1759834990563,0.51239631,124250.0,124240.0,0.3171276]
[1759834990767,0.46411631,124250.0,124240.0,0.3171276]
[1759834991940,0.46411631,124250.0,124240.0,0.0064476]
[1759834992152,0.46411631,124250.0,124240.0,0.3170876]
[1759835003399,1.04407461,124250.0,124240.0,0.0064476]
[1759835003504,1.04407461,124250.0,124240.0,0.3170076]
[1759835007599,0.16100466,124220.0,124200.0,0.36474393]
[1759835007795,0.16100466,124220.0,124210.0,0.41824]
[1759835008467,0.16100466,124220.0,124210.0,0.41917518]
[1759835008929,0.16200466,124220.0,124210.0,0.64609518]
[1759835009388,0.12300466,124220.0,124210.0,0.65509518]
[1759835009639,0.12200466,124220.0,124210.0,0.65509518]
[1759835010140,0.12300466,124220.0,124210.0,0.66209518]
[1759835012244,0.16300466,124220.0,124210.0,0.68261596]
[1759835016923,0.12300466,124220.0,124210.0,0.68261596]
[1759835018640,0.12300466,124220.0,124210.0,0.68253596]
[1759835021730,0.12300466,124220.0,124210.0,0.03745596]
[1759835021944,0.12300466,124220.0,124210.0,0.68253596]
[1759835024432,0.08300466,124220.0,124210.0,0.68253596]
[1759835026356,0.16036466,124220.0,124210.0,0.03745596]
[1759835026571,0.28150466,124220.0,124210.0,0.68249596]
[1759835027357,0.16036466,124220.0,124210.0,0.68249596]
[1759835029424,0.08300466,124220.0,124210.0,0.03745596]
[1759835029569,0.08300466,124220.0,124210.0,0.68253596]
[1759835031771,0.04300466,124220.0,124210.0,0.68253596]
[1759835032595,0.04300466,124220.0,124210.0,0.03745596]
[1759835032898,0.04300466,124220.0,124210.0,0.68253596]
[1759835037099,0.12036466,124220.0,124210.0,0.03745596]
[1759835037305,0.24150466,124220.0,124210.0,0.66197518]
[1759835037958,0.24150466,124220.0,124210.0,0.65497518]
[1759835038167,0.24150466,124220.0,124210.0,0.64597518]
[1759835038396,0.24250466,124220.0,124210.0,0.64997518]
[1759835038607,0.24350466,124220.0,124210.0,0.65397518]
[1759835038828,0.24250466,124220.0,124210.0,0.6709008]
[1759835039029,0.24350466,124220.0,124210.0,0.6719008]
[1759835039227,0.2005,124220.0,124210.0,0.6719008]
[1759835039460,0.36150466,124220.0,124210.0,0.6719008]
[1759835039819,0.36050466,124220.0,124210.0,0.6679008]
[1759835040227,0.36150466,124220.0,124210.0,0.6709008]
[1759835041765,0.36150466,124220.0,124210.0,0.0258608]
[1759835041976,0.36150466,124220.0,124210.0,0.6709408]
[1759835042191,0.36150466,124220.0,124210.0,0.00493518]
[1759835042441,0.44712959,124220.0,124210.0,0.31537518]
[1759835042853,0.47129123,124220.0,124210.0,0.31537518]
[1759835043058,0.47129123,124220.0,124210.0,0.00493518]
[1759835043276,0.47129123,124220.0,124210.0,0.31537518]
[1759835043459,0.4158182,124220.0,124210.0,0.31537518]
[1759835043920,0.39165656,124220.0,124210.0,0.00493518]
[1759835044097,0.39165656,124220.0,124210.0,0.31537518]
[1759835044300,0.47477862,124220.0,124210.0,0.00493518]
[1759835044509,0.47477862,124220.0,124210.0,0.31537518]
[1759835045115,0.49894193,124220.0,124210.0,0.31537518]
[1759835046649,0.45894193,124220.0,124210.0,0.31537518]
[1759835047777,1.03903742,124220.0,124210.0,0.00493518]
[1759835048053,1.03903742,124220.0,124210.0,0.31537518]
[1759835049874,1.53913611,124220.0,124210.0,0.00493518]
[1759835050096,1.87913611,124220.0,124210.0,0.09325518]
[1759835051541,1.87913611,124220.0,124210.0,0.16661518]
[1759835052946,0.87893873,124220.0,124210.0,0.16661518]
[1759835053151,1.37903742,124220.0,124210.0,0.16661518]
[1759835054282,1.87913611,124220.0,124210.0,0.16661518]
[1759835057696,1.37903742,124220.0,124210.0,0.16661518]
[1759835065364,1.42731742,124220.0,124210.0,0.16661518]
[1759835065509,1.37903742,124220.0,124210.0,0.16661518]
[1759835068034,0.87893873,124220.0,124210.0,0.16661518]
[1759835068245,1.37903742,124220.0,124210.0,0.16661518]
[1759835068929,1.29883001,124220.0,124210.0,0.16661518]
[1759835070126,0.76857942,124220.0,124210.0,0.16661518]
[1759835070332,0.42857942,124220.0,124210.0,0.00493518]
[1759835070545,0.42857942,124220.0,124210.0,0.15117518]
[1759835070749,0.42857942,124220.0,124210.0,0.23485518]
[1759835070983,0.45873132,124220.0,124210.0,0.23485518]
[1759835071999,0.45873132,124220.0,124210.0,0.00493518]
[1759835072235,0.45873132,124220.0,124210.0,0.31549518]
[1759835074158,0.41873132,124220.0,124210.0,0.31549518]
[1759835074363,0.50175132,124220.0,124210.0,0.31549518]
[1759835076166,0.50175132,124220.0,124210.0,0.00493518]
[1759835076410,0.50175132,124220.0,124210.0,0.26673518]
[1759835081551,0.46175132,124220.0,124210.0,0.26673518]
[1759835083562,0.18716797,124220.0,124210.0,0.59272281]
[1759835083794,0.002,124220.0,124210.0,0.59272281]
[1759835085126,0.002,124220.0,124210.0,1.01584487]
[1759835086457,0.001,124220.0,124210.0,1.01484487]
[1759835086913,0.002,124220.0,124210.0,1.02384487]
[1759835087131,0.001,124220.0,124210.0,1.02084487]
[1759835087326,0.002,124220.0,124210.0,1.02684487]
[1759835087847,0.002,124220.0,124210.0,0.76504487]
[1759835088057,0.002,124220.0,124210.0,1.41028487]
[1759835088605,0.002,124220.0,124210.0,1.41024487]
[1759835089208,0.1310393,124240.0,124220.0,0.1609939]
[1759835089413,0.1310393,124240.0,124230.0,0.4688717]
[1759835089632,0.1310393,124240.0,124230.0,0.55341871]
[1759835089880,0.19336831,124250.0,124230.0,0.55341871]
[1759835090107,0.16921309,124250.0,124240.0,0.18374787]
[1759835090335,0.16921309,124250.0,124240.0,0.16765]
[1759835090548,0.16921309,124250.0,124240.0,0.24861]
[1759835091412,0.1697098,124250.0,124240.0,0.25061]
[1759835091637,0.1717098,124250.0,124240.0,0.25361]
[1759835091878,0.1717098,124250.0,124240.0,0.73149]
[1759835092084,0.1717098,124250.0,124240.0,0.81513]
[1759835093179,0.1717098,124250.0,124240.0,0.08596]
[1759835093397,0.2503398,124250.0,124240.0,0.73112]
[1759835093607,0.1717098,124250.0,124240.0,0.73112]
[1759835095554,0.1717098,124250.0,124240.0,0.73145798]
[1759835095883,0.1717098,124250.0,124240.0,0.08629798]
[1759835096071,0.1717098,124250.0,124240.0,0.73137798]
[1759835096708,0.1317098,124250.0,124240.0,0.73137798]
[1759835097286,0.2103398,124250.0,124240.0,0.08629798]
[1759835097483,0.2103398,124250.0,124240.0,0.73137798]
[1759835097691,0.1317098,124250.0,124240.0,0.73137798]
[1759835099804,0.1317098,124250.0,124240.0,0.08629798]
[1759835100034,0.1317098,124250.0,124240.0,0.39673798]
[1759835101237,0.1317098,124250.0,124240.0,0.48074798]
[1759835102935,0.1317098,124250.0,124240.0,0.08364]
[1759835104022,0.1317098,124250.0,124240.0,0.31044]
[1759835105240,0.16097875,124240.0,124230.0,0.50434409]
[1759835105458,0.12097875,124240.0,124230.0,0.58798409]
[1759835105669,0.12097875,124240.0,124230.0,0.58818311]
[1759835106002,0.16366516,124250.0,124230.0,0.58818311]
[1759835106473,0.16166516,124250.0,124240.0,0.22676]
[1759835106748,0.16166516,124250.0,124240.0,0.38773875]
[1759835106973,0.16166516,124250.0,124240.0,0.22676]
[1759835107205,0.16266516,124250.0,124240.0,0.22676]
[1759835107412,0.16366516,124250.0,124240.0,0.22676]
[1759835107618,0.16266516,124250.0,124240.0,0.22676]
[1759835107751,0.16366516,124250.0,124240.0,0.22776]
[1759835107936,0.16266516,124250.0,124240.0,0.38873875]
[1759835108135,0.00169573,124250.0,124240.0,0.38873875]
[1759835108337,0.00269573,124250.0,124240.0,0.81386081]
[1759835109629,0.00069573,124250.0,124240.0,0.81086081]
[1759835109835,0.00169573,124250.0,124240.0,0.81586081]
[1759835110042,0.00269573,124250.0,124240.0,0.82386081]
[1759835110498,0.00269573,124250.0,124240.0,2.56993981]
[1759835111509,0.00269573,124250.0,124240.0,3.32269981]
[1759835112540,0.00269573,124250.0,124240.0,3.34684836]
[1759835112752,0.00269573,124250.0,124240.0,3.40581501]
[1759835112966,0.13171015,124280.0,124260.0,0.1609436]
[1759835113309,0.16104681,124280.0,124270.0,0.47137988]
[1759835113745,0.16104681,124280.0,124270.0,0.16093988]
[1759835113973,0.16104681,124280.0,124270.0,0.80597988]
[1759835114165,0.16204681,124280.0,124270.0,0.80597988]
[1759835115330,0.16204681,124280.0,124270.0,0.57868658]
[1759835115661,0.16204681,124280.0,124270.0,0.41816]
[1759835115860,0.16204681,124280.0,124270.0,0.001]
[1759835115861,0.16304681,124280.0,124270.0,0.001]
[1759835116069,0.16204681,124280.0,124270.0,0.41912]
[1759835116307,0.16304681,124280.0,124270.0,0.42112]
[1759835116619,0.16304681,124280.0,124270.0,0.64792]
[1759835118377,0.16304681,124280.0,124270.0,0.56432]
[1759835118540,0.16304681,124280.0,124270.0,0.003]
[1759835118714,0.16304681,124280.0,124270.0,0.64792]
[1759835118946,0.1639815,124280.0,124270.0,0.64792]
[1759835120038,0.1639815,124280.0,124270.0,0.80885988]
[1759835120459,0.1239815,124280.0,124270.0,0.64792]
[1759835120937,0.1239815,124280.0,124270.0,0.80885988]
[1759835121154,0.00305457,124280.0,124270.0,0.89198194]
[1759835121500,0.00305457,124280.0,124270.0,1.23198194]
[1759835122576,0.00105457,124280.0,124270.0,1.22898194]
[1759835122949,0.00305457,124280.0,124270.0,1.24198194]
[1759835125332,0.00305457,124280.0,124270.0,1.15830194]
[1759835125518,0.00305457,124280.0,124270.0,1.70999294]
[1759835126165,0.00305457,124280.0,124270.0,1.73413587]
[1759835127382,0.00305457,124280.0,124270.0,1.08929587]
[1759835127551,0.00305457,124280.0,124270.0,0.72186687]
[1759835127762,0.00305457,124280.0,124270.0,0.87834499]
[1759835128011,0.1239815,124280.0,124270.0,0.99792]
[1759835128377,0.1239815,124280.0,124270.0,0.51393988]
[1759835128576,0.1239815,124280.0,124270.0,1.15885988]
[1759835129021,0.1239815,124280.0,124270.0,0.013]
[1759835129229,0.1239815,124280.0,124270.0,1.15792]
[1759835129435,0.1239815,124280.0,124270.0,0.65792]
[1759835129822,0.1239815,124280.0,124270.0,0.81885988]
[1759835130427,0.16091399,124290.0,124280.0,0.16092693]
[1759835130644,0.16092693,124280.0,124270.0,0.013]
[1759835130848,0.16092693,124280.0,124270.0,0.40081988]
[1759835131027,0.16092693,124280.0,124270.0,0.81885988]
[1759835131412,0.16099397,124290.0,124270.0,0.81885988]
[1759835131621,0.16099397,124290.0,124270.0,0.81085988]
[1759835132077,0.16092693,124280.0,124270.0,0.81085988]
[1759835132281,0.16092693,124280.0,124270.0,0.80585988]
[1759835132788,0.16199397,124290.0,124270.0,0.80585988]
[1759835132992,0.16092693,124280.0,124270.0,0.80585988]
[1759835133655,0.16192693,124280.0,124270.0,0.81085988]
[1759835134046,0.16292693,124280.0,124270.0,0.81885988]
[1759835134261,0.002,124280.0,124270.0,0.81885988]
[1759835135523,0.12299397,124290.0,124270.0,0.81885988]
[1759835135693,0.12299397,124290.0,124280.0,0.16092693]
[1759835136111,0.00027886,124290.0,124280.0,0.16092693]
[1759835136307,0.00027886,124290.0,124280.0,0.17701962]
[1759835136746,0.00027886,124290.0,124280.0,0.26014168]
[1759835136946,0.00127886,124290.0,124280.0,0.25004899]
[1759835137390,0.00227886,124290.0,124280.0,0.25004899]
[1759835138641,0.00127886,124290.0,124280.0,0.25004899]
[1759835138856,0.00127886,124290.0,124280.0,0.30948542]
[1759835139066,0.00227886,124290.0,124280.0,0.31348542]
[1759835140109,0.00227886,124290.0,124280.0,0.54044542]
[1759835140313,0.00227886,124290.0,124280.0,0.87488542]
[1759835140524,0.00227886,124290.0,124280.0,0.95848542]
[1759835142822,0.12317992,124300.0,124290.0,0.16091399]
[1759835144232,0.12417992,124300.0,124290.0,0.16491399]
[1759835145195,0.12517992,124300.0,124290.0,0.16791399]
[1759835145399,0.12517992,124300.0,124290.0,0.65192]
[1759835145599,0.12517992,124300.0,124290.0,0.007]
[1759835146153,0.12517992,124300.0,124290.0,0.65192]
[1759835148540,0.12537878,124300.0,124290.0,0.81283399]
[1759835149153,0.12537878,124300.0,124290.0,0.007]
[1759835149370,0.12537878,124300.0,124290.0,0.65188]
[1759835150331,0.08537878,124300.0,124290.0,0.65188]
[1759835152367,0.08537878,124300.0,124290.0,0.81279399]
[1759835152605,0.08537878,124300.0,124290.0,0.65188]
[1759835157872,0.24354878,124300.0,124290.0,0.65184]
[1759835158444,0.12300878,124300.0,124290.0,0.65184]
[1759835159249,0.04537878,124300.0,124290.0,0.65184]
[1759835161228,0.12300878,124300.0,124290.0,0.65184]
[1759835161463,0.24354878,124300.0,124290.0,0.65184]
[1759835161962,0.12300878,124300.0,124290.0,0.65184]
[1759835162910,0.04537878,124300.0,124290.0,0.65184]
[1759835165859,0.00219886,124300.0,124290.0,0.65184]
[1759835166096,0.16309992,124300.0,124290.0,0.65184]
[1759835173409,0.12309992,124300.0,124290.0,0.65184]
[1759835180052,0.32357992,124300.0,124290.0,0.65184]
[1759835180267,0.20292992,124300.0,124290.0,0.65184]
[1759835180410,0.82296623,124300.0,124290.0,0.65184]
[1759835180611,0.32357992,124300.0,124290.0,0.65184]
[1759835180813,0.78296623,124300.0,124290.0,0.65184]
[1759835181056,0.16292992,124300.0,124290.0,0.65184]
[1759835181474,0.28357992,124300.0,124290.0,0.65184]
[1759835182123,0.08309992,124300.0,124290.0,0.65184]
[1759835184822,0.08309992,124300.0,124290.0,0.007]
[1759835185064,0.08309992,124300.0,124290.0,0.65168]
[1759835188368,0.04309992,124300.0,124290.0,0.65168]
[1759835195684,0.12129992,124300.0,124290.0,0.007]
[1759835195879,0.81632895,124310.0,124290.0,0.65164]
[1759835196063,0.16090106,124300.0,124290.0,0.65164]
[1759835197776,0.16090106,124300.0,124290.0,0.64864]
[1759835198603,0.16090106,124300.0,124290.0,0.65164]
[1759835199323,0.16090106,124300.0,124290.0,0.64864]
[1759835199614,0.16190106,124300.0,124290.0,0.65164]
[1759835201094,0.36309106,124300.0,124290.0,0.65164]
[1759835202419,1.47513764,124300.0,124290.0,0.0906]
[1759835202632,0.47636502,124300.0,124290.0,0.3172]
[1759835202838,0.99989828,124300.0,124290.0,0.3172]
[1759835203424,0.95989828,124300.0,124290.0,0.3172]
[1759835205054,0.46051197,124300.0,124290.0,0.3172]
[1759835205266,0.95989828,124300.0,124290.0,0.3172]
[1759835210813,0.91989828,124300.0,124290.0,0.3172]
[1759835211458,0.42051197,124300.0,124290.0,0.3172]
[1759835211633,0.91989828,124300.0,124290.0,0.3172]
[1759835212804,0.42051197,124300.0,124290.0,0.3172]
[1759835213110,0.91989828,124300.0,124290.0,0.3172]
[1759835215587,0.42051197,124300.0,124290.0,0.3172]
[1759835215798,0.91989828,124300.0,124290.0,0.3172]
[1759835218032,0.42051197,124300.0,124290.0,0.3172]
[1759835218233,0.91989828,124300.0,124290.0,0.3172]
[1759835218440,0.38051197,124300.0,124290.0,0.3172]
[1759835218576,0.17932197,124300.0,124290.0,0.3172]
[1759835219159,0.25677197,124300.0,124290.0,0.3172]
[1759835219367,0.38051197,124300.0,124290.0,0.3172]
[1759835220986,0.06604801,124300.0,124290.0,0.3172]
[1759835221547,0.27118801,124300.0,124290.0,0.3172]
[1759835221765,0.77057432,124300.0,124290.0,0.3172]
[1759835224877,0.77057432,124300.0,124290.0,0.007]
[1759835225047,0.77057432,124300.0,124290.0,0.65168]
[1759835225873,0.72967326,124300.0,124290.0,0.65168]
[1759835226087,1.42011253,124300.0,124290.0,0.007]
[1759835226318,1.42011253,124300.0,124290.0,0.0906]
[1759835226319,1.50323459,124300.0,124290.0,0.0906]
[1759835226530,1.58323139,124300.0,124290.0,0.09984]
[1759835226944,1.50323459,124300.0,124290.0,0.09984]
[1759835227085,1.00408484,124300.0,124290.0,0.09984]
[1759835227822,0.50446197,124300.0,124290.0,0.09984]
[1759835228033,1.00408484,124300.0,124290.0,0.09984]
[1759835228234,0.16093988,124270.0,124260.0,0.34]
[1759835228453,0.16093988,124270.0,124260.0,0.91907232]
[1759835228900,0.16094353,124280.0,124260.0,0.91966909]
[1759835229044,0.16094353,124280.0,124270.0,0.01609398]
[1759835229591,0.16094353,124280.0,124270.0,0.24277398]
[1759835229823,0.19344584,124290.0,124270.0,0.38761988]
[1759835230032,0.16092693,124280.0,124270.0,0.47074194]
[1759835230484,0.002,124280.0,124270.0,0.48674194]
[1759835231814,0.001,124280.0,124270.0,0.47674194]
[1759835232264,0.001,124280.0,124270.0,0.48374194]
[1759835232446,0.16192693,124280.0,124270.0,0.47674194]
[1759835232674,0.16292693,124280.0,124270.0,0.48374194]
[1759835232993,0.002,124280.0,124270.0,0.48374194]
[1759835233395,0.12292693,124280.0,124270.0,0.48374194]
[1759835234423,0.12292693,124280.0,124270.0,0.48413974]
[1759835237405,0.12292693,124280.0,124270.0,0.25745974]
[1759835237617,0.12292693,124280.0,124270.0,0.90217974]
[1759835237835,0.12292693,124280.0,124270.0,0.74123986]
[1759835237990,0.12292693,124280.0,124270.0,0.90217974]
[1759835240590,0.12292693,124280.0,124270.0,0.48413974]
[1759835240731,0.12292693,124280.0,124270.0,0.90217974]
[1759835240943,0.08292693,124280.0,124270.0,0.90217974]
[1759835243046,0.08292693,124280.0,124270.0,0.25745974]
[1759835243228,0.08292693,124280.0,124270.0,0.90217974]
[1759835246906,0.08292693,124280.0,124270.0,0.25745974]
[1759835247208,0.08292693,124280.0,124270.0,0.90213974]
[1759835247775,0.1692976,124290.0,124270.0,0.90213974]
[1759835247950,0.1692976,124290.0,124280.0,0.64468]
[1759835248575,0.16092693,124280.0,124270.0,0.25106194]
[1759835248775,0.16092693,124280.0,124270.0,0.89574194]
[1759835248930,0.16092693,124280.0,124270.0,0.89374194]
[1759835249334,0.16092693,124280.0,124270.0,0.88874194]
[1759835249819,0.16092693,124280.0,124270.0,0.24406194]
[1759835250021,0.16192693,124280.0,124270.0,0.89674194]
[1759835250854,0.16292693,124280.0,124270.0,0.90174194]
[1759835252541,0.16292693,124280.0,124270.0,0.48370194]
[1759835252758,0.16292693,124280.0,124270.0,0.90174194]
[1759835253822,0.16292693,124280.0,124270.0,0.013]
[1759835253945,0.35721693,124280.0,124270.0,0.65768]
[1759835254301,0.35721693,124280.0,124270.0,0.6580778]
[1759835257872,0.24243693,124280.0,124270.0,0.6580778]
[1759835270205,0.8849617,124280.0,124270.0,0.3478378]
[1759835270432,1.02294697,124280.0,124270.0,0.6580778]
[1759835270697,0.99223579,124280.0,124270.0,0.6580778]
[1759835271129,0.99123579,124280.0,124270.0,0.6530778]
[1759835271346,0.99023579,124280.0,124270.0,0.6450778]
[1759835271565,0.99023579,124280.0,124270.0,0.6470778]
[1759835271739,0.99023579,124280.0,124270.0,0.6480778]
[1759835271967,0.99023579,124280.0,124270.0,0.6450778]
[1759835272386,0.99223579,124280.0,124270.0,0.6460778]
[1759835272697,1.04051579,124280.0,124270.0,0.6460778]
[1759835273010,0.99223579,124280.0,124270.0,0.6460778]
[1759835276612,0.49261292,124280.0,124270.0,0.6460778]
[1759835277305,0.37986292,124280.0,124270.0,0.6460778]
[1759835277552,0.18707896,124280.0,124270.0,0.80701768]
[1759835277787,0.002,124280.0,124270.0,0.80701768]
[1759835278009,0.002,124280.0,124270.0,0.89013974]
[1759835278436,0.002,124280.0,124270.0,0.88913974]
[1759835278653,0.1692976,124290.0,124280.0,0.16092693]
[1759835279062,0.16125191,124290.0,124280.0,0.17701962]
[1759835280764,0.16125191,124290.0,124280.0,0.01609269]
[1759835280939,0.16125191,124290.0,124280.0,0.17701962]
[1759835281168,0.16225191,124290.0,124280.0,0.02009269]
[1759835281407,0.16325191,124290.0,124280.0,0.02709269]
[1759835281611,0.16325191,124290.0,124280.0,0.011]
[1759835282284,0.16325191,124290.0,124280.0,0.17192693]
[1759835282891,0.16325191,124290.0,124280.0,0.011]
[1759835283102,0.16325191,124290.0,124280.0,0.56136]
[1759835283325,0.16325191,124290.0,124280.0,0.64496]
[1759835283537,0.35565191,124290.0,124280.0,0.65592]
[1759835284197,0.24260191,124290.0,124280.0,0.65611887]
[1759835284430,0.16325191,124290.0,124280.0,0.65611887]
[1759835287006,0.35565191,124290.0,124280.0,0.42923887]
[1759835287171,0.88539486,124290.0,124280.0,0.42923887]
[1759835287368,0.90954267,124290.0,124280.0,0.65615887]
[1759835288572,0.99266473,124290.0,124280.0,0.65615887]
[1759835289235,0.99266473,124290.0,124280.0,0.01119887]
[1759835289435,0.99266473,124290.0,124280.0,0.10575887]
[1759835293564,0.49307368,124290.0,124280.0,0.10575887]
[1759835293783,0.99266473,124290.0,124280.0,0.10575887]
[1759835301575,0.49307368,124290.0,124280.0,0.10575887]
[1759835301769,0.99266473,124290.0,124280.0,0.10575887]
[1759835302242,0.49307368,124290.0,124280.0,0.10575887]
[1759835302457,0.99266473,124290.0,124280.0,0.10575887]
[1759835302631,0.49307368,124290.0,124280.0,0.10575887]
[1759835303017,0.38002368,124290.0,124280.0,0.10575887]
[1759835303642,0.49307368,124290.0,124280.0,0.10575887]
[1759835305739,0.40995162,124290.0,124280.0,0.10575887]
[1759835309601,0.21755162,124290.0,124280.0,0.10575887]
[1759835310490,0.29690162,124290.0,124280.0,0.10575887]
[1759835310909,0.40995162,124290.0,124280.0,0.10575887]
[1759835311627,0.18739972,124290.0,124280.0,0.01119887]
[1759835311847,0.35779191,124290.0,124280.0,0.65611887]
[1759835321752,0.35779191,124290.0,124280.0,0.01119887]
[1759835321950,0.35779191,124290.0,124280.0,0.65607887]
[1759835323486,0.35779191,124290.0,124280.0,0.57247887]
[1759835323718,0.35779191,124290.0,124280.0,0.65607887]
[1759835325541,0.35779191,124290.0,124280.0,0.01119887]
[1759835325726,0.35779191,124290.0,124280.0,0.65607887]
[1759835326019,0.35779191,124290.0,124280.0,0.01119887]
[1759835326233,0.35779191,124290.0,124280.0,0.65603887]
[1759835330121,0.35779191,124290.0,124280.0,0.01119887]
[1759835330349,0.35779191,124290.0,124280.0,0.65603887]
[1759835331590,0.35779191,124290.0,124280.0,0.01119887]
[1759835331814,0.35779191,124290.0,124280.0,0.65603887]
[1759835340225,0.35779191,124290.0,124280.0,0.01119887]
[1759835340346,0.35779191,124290.0,124280.0,0.65599887]
[1759835341404,0.35779191,124290.0,124280.0,0.01119887]
[1759835341600,0.35779191,124290.0,124280.0,0.65599887]
[1759835341804,0.88753486,124290.0,124280.0,0.01119887]
[1759835342014,0.98436725,124290.0,124280.0,0.48707887]
[1759835342221,0.4847762,124290.0,124280.0,0.57067887]
[1759835342448,0.98436725,124290.0,124280.0,0.57067887]
[1759835342662,0.98436725,124290.0,124280.0,0.01119887]
[1759835342885,0.98436725,124290.0,124280.0,0.32151887]
[1759835343550,0.91168232,124290.0,124280.0,0.32151887]
[1759835346705,0.91168232,124290.0,124280.0,0.01119887]
[1759835347155,0.99480438,124290.0,124280.0,0.10711887]
[1759835347378,1.83439543,124290.0,124280.0,0.10711887]
[1759835347592,0.16096579,124250.0,124230.0,0.09325106]
[1759835347807,0.16096579,124250.0,124240.0,0.91808]
[1759835348023,0.16096579,124250.0,124240.0,0.41887589]
[1759835348821,0.16096579,124250.0,124240.0,0.64559589]
[1759835349730,0.16196579,124250.0,124240.0,0.65059589]
[1759835349933,0.16296579,124250.0,124240.0,0.65459589]
[1759835350133,0.16196579,124250.0,124240.0,0.64959589]
[1759835350500,0.16296579,124250.0,124240.0,0.65459589]
[1759835360785,0.16296579,124250.0,124240.0,0.81557464]
[1759835362760,0.16296579,124250.0,124240.0,0.65459589]
[1759835365078,0.16296579,124250.0,124240.0,0.81557464]
[1759835368270,0.002,124250.0,124240.0,0.81557464]
[1759835372715,0.16296579,124250.0,124240.0,0.81557464]
[1759835375757,0.002,124250.0,124240.0,0.81557464]
[1759835375952,0.002,124250.0,124240.0,0.8986967]
[1759835391632,0.002,124250.0,124240.0,0.2538967]
[1759835391847,0.002,124250.0,124240.0,0.8988167]
[1759835398704,0.002,124250.0,124240.0,1.2388167]
[1759835399833,0.002,124250.0,124240.0,1.26296616]
[1759835401756,0.002,124250.0,124240.0,2.44108716]
[1759835402476,0.002,124250.0,124240.0,1.79616716]
[1759835402703,0.002,124250.0,124240.0,2.77556716]
[1759835404807,0.002,124250.0,124240.0,2.60479252]
[1759835405134,0.002,124250.0,124240.0,2.76577127]
[1759835406986,0.002,124250.0,124240.0,2.42577127]
[1759835408131,0.002,124250.0,124240.0,2.2209893]
[1759835408373,0.002,124250.0,124240.0,4.69386481]
[1759835408549,0.002,124250.0,124240.0,4.49523181]
[1759835408794,0.002,124250.0,124240.0,4.31323281]
[1759835409059,0.002,124250.0,124240.0,4.65323281]
[1759835409708,0.002,124250.0,124240.0,4.63525381]
[1759835413897,0.002,124250.0,124240.0,4.61866181]
[1759835414113,0.002,124250.0,124240.0,4.07793081]
[1759835414283,0.002,124250.0,124240.0,4.03045481]
[1759835415161,0.002,124250.0,124240.0,3.05117481]
[1759835415363,0.002,124250.0,124240.0,3.39090181]
[1759835425771,0.002,124250.0,124240.0,2.17136681]
[1759835425967,0.002,124250.0,124240.0,1.90870981]
[1759835426152,0.002,124250.0,124240.0,2.32678981]
[1759835426370,0.002,124250.0,124240.0,1.57422981]
[1759835426582,0.002,124250.0,124240.0,2.32678981]
[1759835427922,0.002,124250.0,124240.0,2.3509381]
[1759835428516,0.002,124250.0,124240.0,1.3716581]
[1759835428734,0.002,124250.0,124240.0,1.8152461]
[1759835432975,0.002,124250.0,124240.0,0.8359661]
[1759835433184,0.002,124250.0,124240.0,1.8152461]
[1759835433595,0.002,124250.0,124240.0,0.8359661]
[1759835433732,0.002,124250.0,124240.0,1.8152461]
[1759835433934,0.002,124250.0,124240.0,0.8359661]
[1759835434213,0.002,124250.0,124240.0,1.8152461]
[1759835434407,0.002,124250.0,124240.0,1.7669871]
[1759835436094,0.002,124250.0,124240.0,1.7450691]
[1759835439030,0.002,124250.0,124240.0,0.7657891]
[1759835439292,0.16296579,124250.0,124240.0,0.60320704]
[1759835439500,0.16296579,124250.0,124240.0,0.34]
[1759835439719,0.36168579,124250.0,124240.0,0.9848]
[1759835441555,0.24411579,124250.0,124240.0,0.9848]
[1759835442627,0.16296579,124250.0,124240.0,0.9848]
[1759835442851,0.16296579,124250.0,124240.0,1.14577875]
[1759835444041,0.16296579,124250.0,124240.0,0.9848]
[1759835444266,0.16296579,124250.0,124240.0,1.14577875]
[1759835445725,0.16296579,124250.0,124240.0,0.9848]
[1759835445916,0.16296579,124250.0,124240.0,1.14577875]
[1759835453678,0.16296579,124250.0,124240.0,0.9848]
[1759835453850,0.36168579,124250.0,124240.0,0.9012]
[1759835454225,0.36168579,124250.0,124240.0,0.9848]
[1759835454412,0.36168579,124250.0,124240.0,0.6448]
[1759835454678,0.36168579,124250.0,124240.0,0.80577875]
[1759835455211,0.24411579,124250.0,124240.0,0.80577875]
[1759835455408,0.24411579,124250.0,124240.0,0.57905875]
[1759835455627,0.24411579,124250.0,124230.0,0.22217418]
[1759835455858,0.24411579,124250.0,124240.0,0.41808]
[1759835456021,0.24411579,124250.0,124240.0,0.57905875]
[1759835456229,0.24411579,124250.0,124240.0,0.41808]
[1759835456654,0.24411579,124250.0,124240.0,0.6448]
[1759835457036,0.24211579,124250.0,124240.0,0.6448]
[1759835457264,0.24411579,124250.0,124240.0,0.6448]
[1759835457577,0.24311579,124250.0,124240.0,0.6448]
[1759835457789,0.24211579,124250.0,124240.0,0.6448]
[1759835457920,0.24511579,124250.0,124240.0,0.6468]
[1759835458329,0.24611579,124250.0,124240.0,0.6498]
[1759835460578,0.36368579,124250.0,124240.0,0.6498]
[1759835460795,0.86322167,124250.0,124240.0,0.6498]